[Event "Live Chess"]
[Site "Chess.com"]
[Date "2023.05.21"]
[Round "-"]
[White "Olisingapore"]
[Black "wadsy27"]
[Result "0-1"]
[WhiteElo "1791"]
[BlackElo "2554"]
[TimeControl "300"]
[EndTime "6:48:58 PDT"]
[Termination "wadsy27 won by resignation"]

1. d4 {[%clk 0:04:57.5]} 1... d5 {[%clk 0:04:58.5]} 2. c4 {[%clk 0:04:57.2]}
2... c6 {[%clk 0:04:57.1]} 3. Nf3 {[%clk 0:04:56.5]} 3... Nf6 {[%clk 0:04:55.8]}
4. g3 {[%clk 0:04:56.1]} 4... Bf5 {[%clk 0:04:54.2]} 5. Bg2 {[%clk 0:04:55.7]}
5... h6 {[%clk 0:04:52.9]} 6. O-O {[%clk 0:04:53.2]} 6... e6 {[%clk 0:04:50.6]}
7. Nc3 {[%clk 0:04:52.1]} 7... Be7 {[%clk 0:04:48.7]} 8. Qb3 {[%clk 0:04:51.7]}
8... Qb6 {[%clk 0:04:47.3]} 9. c5 {[%clk 0:04:51.6]} 9... Qxb3 {[%clk
0:04:46.4]} 10. axb3 {[%clk 0:04:51.5]} 10... O-O {[%clk 0:04:43.4]} 11. Bd2
{[%clk 0:04:43.3]} 11... a6 {[%clk 0:04:39.7]} 12. Ra3 {[%clk 0:04:34.7]} 12...
Nbd7 {[%clk 0:04:37.2]} 13. Rfa1 {[%clk 0:04:22.1]} 13... g5 {[%clk 0:04:34.9]}
14. b4 {[%clk 0:04:16.8]} 14... Rac8 {[%clk 0:04:26.5]} 15. h4 {[%clk
0:04:09.9]} 15... g4 {[%clk 0:04:14.8]} 16. Ne5 {[%clk 0:04:05.9]} 16... Kg7
{[%clk 0:04:10.2]} 17. Nxd7 {[%clk 0:04:01]} 17... Nxd7 {[%clk 0:04:09.5]} 18.
Bf4 {[%clk 0:04:00]} 18... Bf6 {[%clk 0:04:05.6]} 19. e4 {[%clk 0:03:57]} 19...
dxe4 {[%clk 0:03:58.7]} 20. Bxe4 {[%clk 0:03:56.9]} 20... Bxe4 {[%clk
0:03:30.7]} 21. Nxe4 {[%clk 0:03:56.8]} 21... Bxd4 {[%clk 0:03:29.6]} 22. Rd1
{[%clk 0:03:40.8]} 22... e5 {[%clk 0:03:27.4]} 23. Bxe5+ {[%clk 0:03:35.7]}
23... Nxe5 {[%clk 0:03:26.3]} 24. Rxd4 {[%clk 0:03:34.2]} 24... Nf3+ {[%clk
0:03:25.5]} 25. Kg2 {[%clk 0:03:32.9]} 25... Nxd4 {[%clk 0:03:24.2]} 26. Rd3
{[%clk 0:03:31.8]} 26... Nf5 {[%clk 0:03:22.3]} 27. Nd6 {[%clk 0:03:30.1]} 27...
Nxd6 {[%clk 0:03:21.2]} 28. cxd6 {[%clk 0:03:29.4]} 28... Rcd8 {[%clk
0:03:20.9]} 29. d7 {[%clk 0:03:29]} 29... f5 {[%clk 0:03:19.2]} 0-1

[Event "Live Chess"]
[Site "Chess.com"]
[Date "2023.05.21"]
[Round "-"]
[White "raminguy"]
[Black "JanMur7"]
[Result "0-1"]
[WhiteElo "1942"]
[BlackElo "1976"]
[TimeControl "300"]
[EndTime "6:48:59 PDT"]
[Termination "JanMur7 won by resignation"]

1. d4 {[%clk 0:04:59.5]} 1... Nf6 {[%clk 0:04:59]} 2. Nc3 {[%clk 0:04:58.6]}
2... d5 {[%clk 0:04:57.9]} 3. Bf4 {[%clk 0:04:57.8]} 3... e6 {[%clk 0:04:57.3]}
4. Nb5 {[%clk 0:04:56.9]} 4... Na6 {[%clk 0:04:56.7]} 5. e3 {[%clk 0:04:55.8]}
5... Be7 {[%clk 0:04:55.9]} 6. Nf3 {[%clk 0:04:54.6]} 6... O-O {[%clk
0:04:55.1]} 7. Bd3 {[%clk 0:04:53.3]} 7... b6 {[%clk 0:04:54.3]} 8. Ne5 {[%clk
0:04:51.5]} 8... Bb7 {[%clk 0:04:53]} 9. g4 {[%clk 0:04:50.6]} 9... c5 {[%clk
0:04:47.7]} 10. g5 {[%clk 0:04:48.3]} 10... Nd7 {[%clk 0:04:46.5]} 11. Qh5
{[%clk 0:04:43.3]} 11... g6 {[%clk 0:04:45.3]} 12. Qh6 {[%clk 0:04:42.2]} 12...
c4 {[%clk 0:04:35.9]} 13. Be2 {[%clk 0:03:45.8]} 13... Nxe5 {[%clk 0:04:15]} 14.
dxe5 {[%clk 0:03:43.6]} 14... d4 {[%clk 0:04:07.8]} 15. f3 {[%clk 0:03:31.7]}
15... d3 {[%clk 0:04:04.3]} 16. O-O-O {[%clk 0:03:27.4]} 16... Qe8 {[%clk
0:03:47.4]} 17. Nd6 {[%clk 0:03:21.4]} 17... Bxd6 {[%clk 0:03:44.6]} 18. exd6
{[%clk 0:03:20.3]} 18... dxe2 {[%clk 0:03:38.1]} 19. Rde1 {[%clk 0:03:16.9]}
19... e5 {[%clk 0:03:35.1]} 20. Bg3 {[%clk 0:03:11.8]} 20... Bxf3 {[%clk
0:03:28.2]} 21. Rhg1 {[%clk 0:03:10.4]} 21... Bh5 {[%clk 0:03:19.4]} 0-1

[Event "Live Chess"]
[Site "Chess.com"]
[Date "2023.05.21"]
[Round "-"]
[White "Ferrarifan27"]
[Black "zdanevych"]
[Result "1-0"]
[WhiteElo "2071"]
[BlackElo "1497"]
[TimeControl "300"]
[EndTime "6:49:13 PDT"]
[Termination "Ferrarifan27 won by checkmate"]

1. e4 {[%clk 0:04:57.2]} 1... c5 {[%clk 0:04:57.9]} 2. Nf3 {[%clk 0:04:55.1]}
2... e6 {[%clk 0:04:57.3]} 3. d4 {[%clk 0:04:53.1]} 3... d5 {[%clk 0:04:56.7]}
4. exd5 {[%clk 0:04:51.7]} 4... exd5 {[%clk 0:04:56]} 5. Bb5+ {[%clk 0:04:48.9]}
5... Nc6 {[%clk 0:04:55]} 6. O-O {[%clk 0:04:46.6]} 6... a6 {[%clk 0:04:54.1]}
7. Bxc6+ {[%clk 0:04:41.6]} 7... bxc6 {[%clk 0:04:54]} 8. Re1+ {[%clk
0:04:39.7]} 8... Be6 {[%clk 0:04:53.1]} 9. Ng5 {[%clk 0:04:35.9]} 9... Be7
{[%clk 0:04:45.8]} 10. Nxe6 {[%clk 0:04:34.6]} 10... fxe6 {[%clk 0:04:45.7]} 11.
Rxe6 {[%clk 0:04:33.3]} 11... Nf6 {[%clk 0:04:41.6]} 12. dxc5 {[%clk 0:04:27.2]}
12... O-O {[%clk 0:04:40.6]} 13. Rxc6 {[%clk 0:04:24.4]} 13... Ne4 {[%clk
0:04:35.4]} 14. Be3 {[%clk 0:04:18.9]} 14... Bg5 {[%clk 0:04:25.2]} 15. Bxg5
{[%clk 0:04:13]} 15... Qxg5 {[%clk 0:04:25.1]} 16. Nc3 {[%clk 0:03:50.4]} 16...
Nxf2 {[%clk 0:04:19.1]} 17. Qxd5+ {[%clk 0:03:46]} 17... Qxd5 {[%clk 0:04:14.9]}
18. Nxd5 {[%clk 0:03:45.9]} 18... Ng4 {[%clk 0:03:55.4]} 19. h3 {[%clk
0:03:39.9]} 19... Ne5 {[%clk 0:03:52.9]} 20. Rc7 {[%clk 0:03:36.6]} 20... Nc4
{[%clk 0:03:44]} 21. b3 {[%clk 0:03:30.4]} 21... Nd2 {[%clk 0:03:40.9]} 22. Re1
{[%clk 0:03:17.4]} 22... Rf5 {[%clk 0:03:38.7]} 23. c4 {[%clk 0:03:13.6]} 23...
Rff8 {[%clk 0:03:22]} 24. Ree7 {[%clk 0:03:09.6]} 24... Rfe8 {[%clk 0:03:16.1]}
25. Rxg7+ {[%clk 0:03:08]} 25... Kf8 {[%clk 0:03:14.2]} 26. Rcf7# {[%clk
0:03:05.7]} 1-0

[Event "Live Chess"]
[Site "Chess.com"]
[Date "2023.05.21"]
[Round "-"]
[White "grillage"]
[Black "JoeRoot66"]
[Result "0-1"]
[WhiteElo "1768"]
[BlackElo "1895"]
[TimeControl "300"]
[EndTime "6:49:15 PDT"]
[Termination "JoeRoot66 won by checkmate"]

1. d4 {[%clk 0:04:59.3]} 1... Nf6 {[%clk 0:04:58.4]} 2. Nc3 {[%clk 0:04:55.5]}
2... d5 {[%clk 0:04:57.3]} 3. Bf4 {[%clk 0:04:53.5]} 3... c5 {[%clk 0:04:56.4]}
4. e4 {[%clk 0:04:51.5]} 4... Nxe4 {[%clk 0:04:54.7]} 5. Nxe4 {[%clk 0:04:50]}
5... dxe4 {[%clk 0:04:54.6]} 6. dxc5 {[%clk 0:04:48.5]} 6... Qa5+ {[%clk
0:04:54.3]} 7. c3 {[%clk 0:04:47.1]} 7... Qxc5 {[%clk 0:04:54]} 8. Qa4+ {[%clk
0:04:46.1]} 8... Nc6 {[%clk 0:04:53.7]} 9. Qxe4 {[%clk 0:04:45.6]} 9... g6
{[%clk 0:04:53.4]} 10. Nf3 {[%clk 0:04:43.4]} 10... Bg7 {[%clk 0:04:53]} 11. Rd1
{[%clk 0:04:37.8]} 11... Bf5 {[%clk 0:04:49.3]} 12. Qa4 {[%clk 0:04:21.1]} 12...
O-O {[%clk 0:04:47]} 13. Be3 {[%clk 0:04:19.6]} 13... Qa5 {[%clk 0:04:29.7]} 14.
Qh4 {[%clk 0:04:03.4]} 14... Rfd8 {[%clk 0:04:24.3]} 15. Rxd8+ {[%clk 0:03:54]}
15... Rxd8 {[%clk 0:04:24.2]} 16. Bc4 {[%clk 0:03:50.2]} 16... Bxc3+ {[%clk
0:04:08.3]} 17. bxc3 {[%clk 0:03:44.5]} 17... Qxc3+ {[%clk 0:04:08.2]} 18. Bd2
{[%clk 0:03:37.4]} 18... Qa1+ {[%clk 0:04:01.4]} 19. Ke2 {[%clk 0:03:35.4]}
19... Qxh1 {[%clk 0:03:55.7]} 20. Ng5 {[%clk 0:03:34.4]} 20... h5 {[%clk
0:03:45.6]} 21. Nxf7 {[%clk 0:03:19.1]} 21... Rd4 {[%clk 0:03:37]} 22. Nh6+
{[%clk 0:03:10.6]} 22... Kh7 {[%clk 0:03:30.5]} 23. Bg8+ {[%clk 0:02:48.7]}
23... Kg7 {[%clk 0:03:26.7]} 24. Qg5 {[%clk 0:02:42.7]} 24... Re4+ {[%clk
0:03:18.5]} 25. Be3 {[%clk 0:02:25.6]} 25... Nd4+ {[%clk 0:03:13.3]} 26. Kd2
{[%clk 0:02:19.4]} 26... Qb1 {[%clk 0:03:00.8]} 27. Bxd4+ {[%clk 0:02:17.6]}
27... Rxd4+ {[%clk 0:02:59]} 28. Ke2 {[%clk 0:02:07.6]} 28... Qd1+ {[%clk
0:02:53.3]} 29. Ke3 {[%clk 0:02:04.7]} 29... Qd3# {[%clk 0:02:53.2]} 0-1

[Event "Live Chess"]
[Site "Chess.com"]
[Date "2023.05.21"]
[Round "-"]
[White "McSlash1"]
[Black "ClassyChameleon"]
[Result "1-0"]
[WhiteElo "1988"]
[BlackElo "1083"]
[TimeControl "300"]
[EndTime "6:49:34 PDT"]
[Termination "McSlash1 won by checkmate"]

1. e4 {[%clk 0:04:59]} 1... e5 {[%clk 0:04:58.8]} 2. Nf3 {[%clk 0:04:57.5]} 2...
Nc6 {[%clk 0:04:58.2]} 3. Bb5 {[%clk 0:04:57]} 3... Nf6 {[%clk 0:04:55.8]} 4.
O-O {[%clk 0:04:55.2]} 4... Nxe4 {[%clk 0:04:54.4]} 5. Re1 {[%clk 0:04:53.6]}
5... d5 {[%clk 0:04:48.5]} 6. d3 {[%clk 0:04:52.5]} 6... Nf6 {[%clk 0:04:46.8]}
7. Nxe5 {[%clk 0:04:51.5]} 7... Bd7 {[%clk 0:04:45.3]} 8. Nxc6+ {[%clk 0:04:50]}
8... Be7 {[%clk 0:04:42.9]} 9. Nxd8 {[%clk 0:04:49]} 9... Rxd8 {[%clk
0:04:40.4]} 10. Qe2 {[%clk 0:04:45.7]} 10... Bxb5 {[%clk 0:04:39.6]} 11. Qxe7#
{[%clk 0:04:44.5]} 1-0

[Event "Live Chess"]
[Site "Chess.com"]
[Date "2023.05.21"]
[Round "-"]
[White "MJMykh"]
[Black "HadesLearmonth"]
[Result "0-1"]
[WhiteElo "1162"]
[BlackElo "1208"]
[TimeControl "300"]
[EndTime "6:49:36 PDT"]
[Termination "HadesLearmonth won by resignation"]

1. e4 {[%clk 0:04:59]} 1... e5 {[%clk 0:04:59]} 2. Nf3 {[%clk 0:04:57.7]} 2...
Nc6 {[%clk 0:04:57.5]} 3. Nc3 {[%clk 0:04:56.2]} 3... Nf6 {[%clk 0:04:55.5]} 4.
Bc4 {[%clk 0:04:55.1]} 4... Bc5 {[%clk 0:04:53.4]} 5. Ng5 {[%clk 0:04:54.7]}
5... O-O {[%clk 0:04:50.7]} 6. Nxf7 {[%clk 0:04:54.3]} 6... Rxf7 {[%clk
0:04:49.6]} 7. Bxf7+ {[%clk 0:04:54]} 7... Kxf7 {[%clk 0:04:49.3]} 8. O-O {[%clk
0:04:53.3]} 8... d5 {[%clk 0:04:47.7]} 9. exd5 {[%clk 0:04:51.3]} 9... Nxd5
{[%clk 0:04:46.2]} 10. Nxd5 {[%clk 0:04:50.9]} 10... Qxd5 {[%clk 0:04:45.2]} 11.
h3 {[%clk 0:04:50.5]} 11... Nd4 {[%clk 0:04:42]} 12. Qh5+ {[%clk 0:04:46.8]}
12... Kg8 {[%clk 0:04:38.5]} 13. Qe8+ {[%clk 0:04:42.8]} 13... Bf8 {[%clk
0:04:35.3]} 14. c3 {[%clk 0:04:35]} 14... Bxh3 {[%clk 0:04:32.5]} 15. gxh3
{[%clk 0:04:26]} 15... Rxe8 {[%clk 0:04:30.5]} 16. cxd4 {[%clk 0:04:24]} 16...
exd4 {[%clk 0:04:27.5]} 17. d3 {[%clk 0:04:21.9]} 17... Re6 {[%clk 0:04:25]} 18.
Kh2 {[%clk 0:04:12.9]} 18... Rg6 {[%clk 0:04:22.8]} 19. f3 {[%clk 0:04:09.9]}
19... Bd6+ {[%clk 0:04:20]} 20. Kh1 {[%clk 0:04:07.4]} 20... Qe5 {[%clk
0:04:10.9]} 21. Rf2 {[%clk 0:04:03.3]} 21... Qg3 {[%clk 0:04:07.9]} 0-1

[Event "Live Chess"]
[Site "Chess.com"]
[Date "2023.05.21"]
[Round "-"]
[White "ossie57"]
[Black "JohanKjeldahl"]
[Result "1/2-1/2"]
[WhiteElo "1838"]
[BlackElo "1880"]
[TimeControl "300"]
[EndTime "6:49:38 PDT"]
[Termination "Game drawn by repetition"]

1. d4 {[%clk 0:04:57.6]} 1... Nf6 {[%clk 0:04:57.6]} 2. Nc3 {[%clk 0:04:56.3]}
2... c5 {[%clk 0:04:54.7]} 3. d5 {[%clk 0:04:54.9]} 3... d6 {[%clk 0:04:54]} 4.
e4 {[%clk 0:04:54.1]} 4... Nbd7 {[%clk 0:04:52]} 5. Bc4 {[%clk 0:04:42.1]} 5...
a6 {[%clk 0:04:49.8]} 6. a4 {[%clk 0:04:41.2]} 6... g6 {[%clk 0:04:48.9]} 7. Bg5
{[%clk 0:04:38]} 7... Bg7 {[%clk 0:04:48.2]} 8. Qd2 {[%clk 0:04:35.3]} 8... O-O
{[%clk 0:04:46.9]} 9. h4 {[%clk 0:04:33.5]} 9... Ne5 {[%clk 0:04:45.2]} 10. Be2
{[%clk 0:04:29.9]} 10... Bd7 {[%clk 0:04:40.2]} 11. Bxf6 {[%clk 0:04:28.7]}
11... Bxf6 {[%clk 0:04:38.3]} 12. h5 {[%clk 0:04:28.3]} 12... g5 {[%clk
0:04:32.5]} 13. Nf3 {[%clk 0:04:23.9]} 13... h6 {[%clk 0:04:29]} 14. Nxe5 {[%clk
0:04:14.9]} 14... Bxe5 {[%clk 0:04:25.3]} 15. g3 {[%clk 0:04:14.1]} 15... f5
{[%clk 0:04:21.9]} 16. f4 {[%clk 0:04:10.8]} 16... Bf6 {[%clk 0:04:20.5]} 17.
Bd3 {[%clk 0:03:39.9]} 17... fxe4 {[%clk 0:04:17]} 18. Nxe4 {[%clk 0:03:35.2]}
18... e5 {[%clk 0:03:55.8]} 19. fxg5 {[%clk 0:03:22.1]} 19... Bxg5 {[%clk
0:03:52.1]} 20. Nxg5 {[%clk 0:03:11.4]} 20... Qxg5 {[%clk 0:03:50.6]} 21. Qxg5+
{[%clk 0:03:08.2]} 21... hxg5 {[%clk 0:03:49.5]} 22. Bg6 {[%clk 0:02:56.3]}
22... Bf5 {[%clk 0:03:47.2]} 23. Bxf5 {[%clk 0:02:52.1]} 23... Rxf5 {[%clk
0:03:45.3]} 24. Rf1 {[%clk 0:02:47.3]} 24... Raf8 {[%clk 0:03:42.5]} 25. Rxf5
{[%clk 0:02:46.2]} 25... Rxf5 {[%clk 0:03:40.7]} 26. Ke2 {[%clk 0:02:45.2]}
26... g4 {[%clk 0:03:39.6]} 27. Rh1 {[%clk 0:02:29.8]} 27... Kh7 {[%clk
0:03:38]} 28. Rh4 {[%clk 0:02:28.2]} 28... Rg5 {[%clk 0:03:36.6]} 29. Ke3 {[%clk
0:02:26.6]} 29... Kh6 {[%clk 0:03:33.6]} 30. Ke4 {[%clk 0:02:25.7]} 30... b5
{[%clk 0:03:29.9]} 31. axb5 {[%clk 0:02:23.4]} 31... axb5 {[%clk 0:03:28.8]} 32.
b3 {[%clk 0:02:06.4]} 32... Rxh5 {[%clk 0:03:26.8]} 33. Rxg4 {[%clk 0:02:05.1]}
33... Rg5 {[%clk 0:03:25.6]} 34. Rh4+ {[%clk 0:02:04.1]} 34... Rh5 {[%clk
0:03:19.5]} 35. Rg4 {[%clk 0:02:02.2]} 35... Rg5 {[%clk 0:03:18.3]} 36. Rh4+
{[%clk 0:02:01.5]} 36... Rh5 {[%clk 0:03:16.8]} 37. Rg4 {[%clk 0:02:00.8]}
1/2-1/2

[Event "Live Chess"]
[Site "Chess.com"]
[Date "2023.05.21"]
[Round "-"]
[White "YrrriKharkiv"]
[Black "HonestJoe1"]
[Result "1-0"]
[WhiteElo "2074"]
[BlackElo "2089"]
[TimeControl "300"]
[EndTime "6:49:39 PDT"]
[Termination "YrrriKharkiv won by resignation"]

1. d4 {[%clk 0:04:54.5]} 1... Nf6 {[%clk 0:04:57.7]} 2. Nf3 {[%clk 0:04:53.6]}
2... c5 {[%clk 0:04:53.9]} 3. d5 {[%clk 0:04:52.2]} 3... e6 {[%clk 0:04:53]} 4.
c4 {[%clk 0:04:50]} 4... b5 {[%clk 0:04:49.8]} 5. Bg5 {[%clk 0:04:34.6]} 5...
bxc4 {[%clk 0:04:45]} 6. dxe6 {[%clk 0:04:29.9]} 6... fxe6 {[%clk 0:04:43.4]} 7.
e4 {[%clk 0:04:27.1]} 7... Qa5+ {[%clk 0:04:38.2]} 8. Bd2 {[%clk 0:04:15.8]}
8... Qb6 {[%clk 0:04:36.9]} 9. Qc2 {[%clk 0:04:12.7]} 9... Ba6 {[%clk
0:04:28.5]} 10. Nc3 {[%clk 0:04:06]} 10... Nc6 {[%clk 0:04:25.8]} 11. Na4 {[%clk
0:03:53.4]} 11... Qc7 {[%clk 0:03:58]} 12. Bxc4 {[%clk 0:03:45]} 12... Bxc4
{[%clk 0:03:50.4]} 13. Qxc4 {[%clk 0:03:43.2]} 13... d5 {[%clk 0:03:49.6]} 14.
exd5 {[%clk 0:03:40.9]} 14... exd5 {[%clk 0:03:47.7]} 15. Qe2+ {[%clk
0:03:29.4]} 15... Be7 {[%clk 0:03:46.1]} 16. Nxc5 {[%clk 0:03:24]} 16... Nd4
{[%clk 0:03:02.1]} 17. Nxd4 {[%clk 0:03:15.5]} 17... Qxc5 {[%clk 0:03:01]} 18.
Ne6 {[%clk 0:02:24.5]} 18... Qd6 {[%clk 0:02:59.8]} 19. Bf4 {[%clk 0:02:14.5]}
19... Qb4+ {[%clk 0:02:58.7]} 20. Bd2 {[%clk 0:02:13.4]} 20... Qd6 {[%clk
0:02:57.3]} 21. Nxg7+ {[%clk 0:02:07.2]} 21... Kf7 {[%clk 0:02:36]} 22. Nf5
{[%clk 0:02:05.1]} 1-0

[Event "Live Chess"]
[Site "Chess.com"]
[Date "2023.05.21"]
[Round "-"]
[White "Tushinskiy"]
[Black "JackCheetham1"]
[Result "1-0"]
[WhiteElo "2216"]
[BlackElo "1714"]
[TimeControl "300"]
[EndTime "6:49:41 PDT"]
[Termination "Tushinskiy won by resignation"]

1. d4 {[%clk 0:04:58.6]} 1... Nf6 {[%clk 0:04:58.8]} 2. c3 {[%clk 0:04:58.5]}
2... e6 {[%clk 0:04:57.6]} 3. Nf3 {[%clk 0:04:54.3]} 3... d5 {[%clk 0:04:55.6]}
4. Bf4 {[%clk 0:04:52.3]} 4... Bd6 {[%clk 0:04:45.6]} 5. Bg3 {[%clk 0:04:52.2]}
5... O-O {[%clk 0:04:42.9]} 6. Nbd2 {[%clk 0:04:50.4]} 6... Nbd7 {[%clk
0:04:41.1]} 7. e3 {[%clk 0:04:45.7]} 7... Re8 {[%clk 0:04:38.3]} 8. Bd3 {[%clk
0:04:42.9]} 8... e5 {[%clk 0:04:35.5]} 9. dxe5 {[%clk 0:04:41.5]} 9... Nxe5
{[%clk 0:04:35.4]} 10. Nxe5 {[%clk 0:04:40.9]} 10... Bxe5 {[%clk 0:04:35]} 11.
Nf3 {[%clk 0:04:39.9]} 11... Bxg3 {[%clk 0:04:27]} 12. hxg3 {[%clk 0:04:39.8]}
12... Bg4 {[%clk 0:04:23]} 13. Qc2 {[%clk 0:04:34.8]} 13... h6 {[%clk 0:04:20]}
14. O-O-O {[%clk 0:04:29]} 14... c6 {[%clk 0:04:12.5]} 15. Bf5 {[%clk
0:04:15.5]} 15... Qa5 {[%clk 0:03:51.9]} 16. Bxg4 {[%clk 0:04:10.1]} 16... Nxg4
{[%clk 0:03:50.8]} 17. Kb1 {[%clk 0:04:09.1]} 17... Rad8 {[%clk 0:03:36.2]} 18.
Rh4 {[%clk 0:04:08]} 18... Ne5 {[%clk 0:03:28]} 19. g4 {[%clk 0:04:02.1]} 19...
Nc4 {[%clk 0:03:01.8]} 20. g5 {[%clk 0:03:54.1]} 20... Qb6 {[%clk 0:02:52.3]}
21. Ka1 {[%clk 0:03:52.2]} 21... Re6 {[%clk 0:02:34.3]} 22. gxh6 {[%clk
0:03:49.2]} 22... Rxh6 {[%clk 0:02:31.6]} 23. Rxh6 {[%clk 0:03:48]} 23... gxh6
{[%clk 0:02:30.8]} 24. Nd4 {[%clk 0:03:46.4]} 24... Rd6 {[%clk 0:02:13.6]} 25.
b3 {[%clk 0:03:42.9]} 25... Ne5 {[%clk 0:02:06.9]} 26. Qf5 {[%clk 0:03:39.6]}
26... Ng6 {[%clk 0:02:01.7]} 27. Rh1 {[%clk 0:03:36.6]} 27... Kg7 {[%clk
0:01:57]} 28. Qh5 {[%clk 0:03:33.1]} 28... Nf8 {[%clk 0:01:44]} 29. Nf5+ {[%clk
0:03:31.3]} 1-0

[Event "Live Chess"]
[Site "Chess.com"]
[Date "2023.05.21"]
[Round "-"]
[White "GMMickeyAdams"]
[Black "seabuck"]
[Result "1-0"]
[WhiteElo "2785"]
[BlackElo "1878"]
[TimeControl "300"]
[EndTime "6:49:42 PDT"]
[Termination "GMMickeyAdams won by resignation"]

1. d4 {[%clk 0:04:57.9]} 1... e6 {[%clk 0:04:57.2]} 2. e4 {[%clk 0:04:55.6]}
2... d5 {[%clk 0:04:55.8]} 3. Bd3 {[%clk 0:04:52.7]} 3... dxe4 {[%clk
0:04:51.9]} 4. Bxe4 {[%clk 0:04:51.6]} 4... Nf6 {[%clk 0:04:51]} 5. Bf3 {[%clk
0:04:50.8]} 5... Be7 {[%clk 0:04:50]} 6. Ne2 {[%clk 0:04:49]} 6... Nbd7 {[%clk
0:04:44.7]} 7. c4 {[%clk 0:04:44.8]} 7... c6 {[%clk 0:04:42.7]} 8. Nbc3 {[%clk
0:04:43.2]} 8... Bb4 {[%clk 0:04:29.9]} 9. O-O {[%clk 0:04:41]} 9... O-O {[%clk
0:04:22.3]} 10. Bf4 {[%clk 0:04:39.3]} 10... Nb6 {[%clk 0:04:16.4]} 11. b3
{[%clk 0:04:32.1]} 11... a6 {[%clk 0:04:00.7]} 12. Qc2 {[%clk 0:04:27.6]} 12...
Qe7 {[%clk 0:03:45.4]} 13. Rad1 {[%clk 0:04:25.1]} 13... Bxc3 {[%clk 0:03:37.1]}
14. Nxc3 {[%clk 0:04:23.1]} 14... Nbd7 {[%clk 0:03:11]} 15. Rfe1 {[%clk
0:04:19.5]} 15... Qb4 {[%clk 0:02:59.1]} 16. h4 {[%clk 0:04:13.3]} 16... c5
{[%clk 0:02:52.9]} 17. d5 {[%clk 0:04:10.3]} 17... exd5 {[%clk 0:02:50.1]} 18.
Nxd5 {[%clk 0:04:07.2]} 18... Nxd5 {[%clk 0:02:48.2]} 19. Bxd5 {[%clk
0:04:01.5]} 19... Nf6 {[%clk 0:02:44.3]} 20. Bd2 {[%clk 0:03:52.9]} 20... Qb6
{[%clk 0:02:39]} 21. Bc3 {[%clk 0:03:49.9]} 21... Bg4 {[%clk 0:02:31.8]} 22. f3
{[%clk 0:03:42.1]} 22... Nxd5 {[%clk 0:02:25.4]} 23. Rxd5 {[%clk 0:03:40.2]}
23... Be6 {[%clk 0:02:18]} 24. Rh5 {[%clk 0:03:33.4]} 24... g6 {[%clk
0:02:09.1]} 25. Rhe5 {[%clk 0:03:29.1]} 25... Rfe8 {[%clk 0:02:00.3]} 26. Ba1
{[%clk 0:03:26.2]} 26... Bd7 {[%clk 0:01:51.2]} 27. Qd3 {[%clk 0:03:11.5]} 27...
Rxe5 {[%clk 0:01:36.7]} 28. Rxe5 {[%clk 0:03:09.1]} 28... Bf5 {[%clk 0:01:34.5]}
29. Qe3 {[%clk 0:03:00.8]} 29... Qc6 {[%clk 0:01:16.8]} 30. Qh6 {[%clk
0:02:53.3]} 1-0

[Event "Live Chess"]
[Site "Chess.com"]
[Date "2023.05.21"]
[Round "-"]
[White "raminguy"]
[Black "Olisingapore"]
[Result "1-0"]
[WhiteElo "1947"]
[BlackElo "1786"]
[TimeControl "300"]
[EndTime "6:49:44 PDT"]
[Termination "raminguy won by resignation"]

1. d4 {[%clk 0:04:59.5]} 1... Nf6 {[%clk 0:04:58.9]} 2. Nc3 {[%clk 0:04:59.4]}
2... d5 {[%clk 0:04:58]} 3. Bf4 {[%clk 0:04:58.8]} 3... c5 {[%clk 0:04:56.7]} 4.
e3 {[%clk 0:04:56.9]} 4... Nc6 {[%clk 0:04:56.1]} 5. Nb5 {[%clk 0:04:56]} 5...
Bf5 {[%clk 0:04:45.2]} 6. Nc7+ {[%clk 0:04:54.4]} 6... Kd7 {[%clk 0:04:40.3]} 7.
Nxa8 {[%clk 0:04:54.3]} 7... Qxa8 {[%clk 0:04:39]} 8. c3 {[%clk 0:04:52.3]} 8...
e6 {[%clk 0:04:38.5]} 9. Nf3 {[%clk 0:04:50.9]} 9... Bd6 {[%clk 0:04:38]} 10.
Ne5+ {[%clk 0:04:47.5]} 10... Nxe5 {[%clk 0:04:35.7]} 11. dxe5 {[%clk
0:04:46.4]} 1-0

[Event "Live Chess"]
[Site "Chess.com"]
[Date "2023.05.21"]
[Round "-"]
[White "jumush"]
[Black "WelshTiger"]
[Result "0-1"]
[WhiteElo "1713"]
[BlackElo "2326"]
[TimeControl "300"]
[EndTime "6:49:50 PDT"]
[Termination "WelshTiger won by resignation"]

1. e4 {[%clk 0:04:55.8]} 1... c5 {[%clk 0:04:52.8]} 2. Nc3 {[%clk 0:04:52]} 2...
a6 {[%clk 0:04:50]} 3. g3 {[%clk 0:04:49.5]} 3... b5 {[%clk 0:04:49.2]} 4. Bg2
{[%clk 0:04:47.5]} 4... Bb7 {[%clk 0:04:48.7]} 5. d3 {[%clk 0:04:44.6]} 5... e6
{[%clk 0:04:48.3]} 6. f4 {[%clk 0:04:42.8]} 6... g6 {[%clk 0:04:47.3]} 7. Nf3
{[%clk 0:04:40.9]} 7... Bg7 {[%clk 0:04:46.6]} 8. Ne2 {[%clk 0:04:37.7]} 8... d6
{[%clk 0:04:46]} 9. c3 {[%clk 0:04:36.2]} 9... Ne7 {[%clk 0:04:44.8]} 10. O-O
{[%clk 0:04:34.8]} 10... O-O {[%clk 0:04:43.5]} 11. Kh1 {[%clk 0:04:33.4]} 11...
Nbc6 {[%clk 0:04:38.8]} 12. Qe1 {[%clk 0:04:31.6]} 12... Rc8 {[%clk 0:04:37.7]}
13. g4 {[%clk 0:04:29.3]} 13... f5 {[%clk 0:04:35.4]} 14. g5 {[%clk 0:04:25.6]}
14... b4 {[%clk 0:04:34.2]} 15. Bd2 {[%clk 0:04:18.5]} 15... a5 {[%clk
0:04:33.1]} 16. Qh4 {[%clk 0:04:16.2]} 16... Ba6 {[%clk 0:04:28]} 17. Ne1 {[%clk
0:04:12.7]} 17... fxe4 {[%clk 0:04:14.6]} 18. Bxe4 {[%clk 0:04:10.2]} 18... d5
{[%clk 0:04:14.1]} 19. Bg2 {[%clk 0:04:04.8]} 19... Nf5 {[%clk 0:04:13]} 20. Qg4
{[%clk 0:03:58.6]} 20... e5 {[%clk 0:04:03.2]} 21. fxe5 {[%clk 0:03:54.9]} 21...
Nxe5 {[%clk 0:04:02.5]} 22. Qh3 {[%clk 0:03:41.5]} 22... Bb7 {[%clk 0:03:31]}
23. Rg1 {[%clk 0:03:35.3]} 23... Qd7 {[%clk 0:03:30]} 24. Nf4 {[%clk 0:03:32.2]}
24... Rce8 {[%clk 0:03:27.6]} 25. Nf3 {[%clk 0:03:19.6]} 25... Nxf3 {[%clk
0:03:25.6]} 26. Qxf3 {[%clk 0:03:16.1]} 26... Nh4 {[%clk 0:03:22.3]} 27. Qg3
{[%clk 0:03:10.3]} 27... Nxg2 {[%clk 0:03:21.3]} 28. Rxg2 {[%clk 0:03:08.2]}
28... d4 {[%clk 0:03:20.5]} 29. cxd4 {[%clk 0:03:01.2]} 29... Bxd4 {[%clk
0:03:18.4]} 30. Rf1 {[%clk 0:02:44.4]} 30... Be5 {[%clk 0:03:08.7]} 31. Qh4
{[%clk 0:02:35.8]} 31... Qc6 {[%clk 0:03:03.7]} 32. Rf2 {[%clk 0:02:32.3]} 32...
Bxf4 {[%clk 0:02:59.2]} 33. Bxf4 {[%clk 0:02:28.7]} 33... Re1+ {[%clk
0:02:57.2]} 0-1